fUSD/lending_fUSD_20250314
["ID","MTS","AMOUNT","RATE_DAILY","PERIOD"]
[356128831,1741936790553,-500.0,0.00021917,3]
[356128832,1741936790575,-537.35,0.00021917,3]
[356128833,1741936790597,-500.0,0.00021917,3]
[356128834,1741936790620,-643.93,0.00021917,3]
[356128835,1741936790649,-500.0,0.00021917,3]
[356128836,1741936790672,-500.0,0.00021917,3]
[356128837,1741936790696,-500.0,0.00021917,3]
[356128838,1741936790721,-500.0,0.00021917,3]
[356128839,1741936790745,-1730.15,0.00021917,3]
[356128840,1741936790768,-500.0,0.00021917,3]
[356128841,1741936790790,-500.0,0.00021917,3]
[356128842,1741936790813,-3556.92,0.00021917,3]
[356128843,1741936790837,-500.0,0.00021917,3]
[356128844,1741936790861,-500.0,0.00021917,3]
[356128845,1741936790884,-500.0,0.00021917,3]
[356128846,1741936790907,-500.0,0.00021917,3]
[356128847,1741936790930,-534.15,0.00021917,3]
[356128848,1741936790953,-500.0,0.00021917,3]
[356128849,1741936790976,-783.75,0.00021917,3]
[356128850,1741936790998,-500.0,0.00021917,3]
[356128851,1741936791020,-500.0,0.00021917,3]
[356128852,1741936791043,-849.01,0.00021917,3]
[356128853,1741936791065,-500.0,0.00021917,3]
[356128854,1741936791088,-670.89,0.00021917,3]
[356128855,1741936791110,-500.0,0.00021917,2]
[356128856,1741936791133,-500.0,0.00021917,3]
[356128857,1741936791156,-500.0,0.00021917,3]
[356128858,1741936791179,-856.19,0.00021917,3]
[356128859,1741936791202,-500.0,0.00021917,3]
[356128860,1741936791225,-1924.04,0.00021917,3]
[356128861,1741936791248,-605.75,0.00021917,3]
[356128862,1741936791270,-500.0,0.00021917,3]
[356128863,1741936791293,-1041.65,0.00021917,3]
[356128864,1741936791316,-500.0,0.00021917,3]
[356128865,1741936791338,-983.66,0.00021917,3]
[356128866,1741936791360,-500.0,0.00021917,3]
[356128867,1741936791382,-500.0,0.00021917,3]
[356128868,1741936791405,-500.0,0.00021917,3]
[356128869,1741936791428,-504.42041365,0.00021917,3]
[356128870,1741936791450,-500.0,0.00021917,3]
[356128871,1741936791473,-735.35,0.00021917,3]
[356128872,1741936791496,-666.51,0.00021917,3]
[356128873,1741936791518,-868.79,0.00021917,2]
[356128874,1741936791540,-503.00452351,0.00021917,3]
[356128875,1741936791563,-500.0,0.00021917,3]
[356128876,1741936791585,-500.0,0.00021917,3]
[356128877,1741936791608,-500.0,0.00021917,3]
[356128878,1741936791632,-500.0,0.00021917,3]
[356128879,1741936791655,-500.0,0.00021917,3]
[356128880,1741936791678,-787.16,0.00021917,3]
[356128881,1741936791700,-500.0,0.00021917,3]
[356128882,1741936791726,-500.0,0.00021917,3]
[356128883,1741936791748,-500.41154986,0.00021917,3]
[356128884,1741936791771,-500.0,0.00021917,3]
[356128885,1741936791794,-1295.98,0.00021917,3]
[356128886,1741936791817,-500.0,0.00021917,3]
[356128887,1741936791839,-500.0,0.00021917,3]
[356128888,1741936791862,-1289.57,0.00021917,3]
[356128889,1741936791884,-500.0,0.00021917,3]
[356128890,1741936791906,-529.17976188,0.00021917,3]
[356128891,1741936791929,-500.0,0.00021917,3]
[356128892,1741936791951,-500.0,0.00021917,3]
[356128893,1741936791973,-574.68,0.00021917,3]
[356128894,1741936791996,-1037.78,0.00021917,3]
[356128895,1741936792019,-500.0,0.00021917,3]
[356128896,1741936792041,-502.89015106,0.00021917,3]
[356128897,1741936792064,-1084.8,0.00021917,3]
[356128898,1741936792087,-500.0,0.00021917,3]
[356128899,1741936792109,-500.0,0.00021917,3]
[356128900,1741936792132,-571.59204335,0.00021917,3]
[356128901,1741936792156,-713.92,0.00021917,3]
[356128902,1741936792178,-513.18353112,0.00021917,3]
[356128903,1741936792200,-500.0,0.00021917,3]
[356128904,1741936792221,-500.0,0.00021917,3]
[356128905,1741936792244,-770.02,0.00021917,3]
[356128906,1741936792265,-500.0,0.00021917,3]
[356128907,1741936792287,-500.0,0.00021917,3]
[356128908,1741936792308,-500.0,0.00021917,3]
[356128909,1741936792330,-500.0,0.00021917,3]
[356128910,1741936792520,-698.51,0.00021917,3]
[356128911,1741936792553,-500.0,0.00021917,3]
[356128912,1741936792576,-500.0,0.00021917,3]
[356128913,1741936792598,-500.0,0.00021917,3]
[356128914,1741936792620,-630.66636943,0.00021917,3]
[356128915,1741936792646,-500.0,0.00021917,3]
[356128916,1741936792668,-1013.77,0.00021917,3]
[356128917,1741936792691,-500.0,0.00021917,3]
[356128918,1741936792713,-500.0,0.00021917,3]
[356128919,1741936792736,-915.96,0.00021917,3]
[356128920,1741936792759,-500.0,0.00021917,3]
[356128921,1741936792781,-501.72929055,0.00021917,3]
[356128922,1741936792804,-500.0,0.00021917,3]
[356128923,1741936792826,-391.39894815,0.00021917,3]
[356128924,1741936792849,-500.0,0.00021917,3]
[356128925,1741936792871,-500.0,0.00021917,3]
[356128926,1741936792893,-500.0,0.00021917,3]
[356128927,1741936792916,-508.40194241,0.00021917,3]
[356128928,1741936792947,-576.71,0.00021917,3]
[356128929,1741936792994,-501.55998207,0.00021917,3]
[356128930,1741936793043,-500.0,0.00021917,3]
[356128931,1741936793091,-500.0,0.00021917,3]
[356128932,1741936793138,-746.99,0.00021917,3]
[356128933,1741936793167,-1277.38,0.00021917,3]
[356128934,1741936793190,-500.0,0.00021917,3]
[356128935,1741936793213,-852.69,0.00021917,3]
[356128936,1741936793235,-500.0,0.00021917,3]
[356128937,1741936793257,-502.5275969,0.00021917,3]
[356128938,1741936793280,-2258.77,0.00021917,3]
[356128939,1741936793303,-501.6818539,0.00021917,3]
[356128940,1741936793326,-662.9,0.00021917,3]
[356128941,1741936793348,-500.0,0.00021917,3]
[356128942,1741936793370,-500.0,0.00021917,3]
[356128943,1741936793392,-500.0,0.00021917,3]
[356128944,1741936793414,-500.0,0.00021917,3]
[356128945,1741936793437,-500.0,0.00021917,3]
[356128946,1741936793458,-772.07,0.00021917,3]
[356128947,1741936793479,-500.0,0.00021917,3]
[356128948,1741936793501,-454.84530385,0.00021917,3]
[356128949,1741936793522,-500.13388511,0.00021917,3]
[356128950,1741936793544,-500.0,0.00021917,3]
[356128951,1741936793566,-500.0,0.00021917,3]
[356128952,1741936793588,-557.6,0.00021917,3]
[356128953,1741936793609,-500.0,0.00021917,3]
[356128954,1741936793635,-500.0,0.00021917,3]
[356128955,1741936793656,-916.26,0.00021917,3]
[356128956,1741936793679,-651.4,0.00021917,3]
[356128957,1741936793701,-500.0,0.00021917,3]
[356128958,1741936793724,-500.0,0.00021917,3]
[356128959,1741936793746,-501.06992161,0.00021917,3]
[356128960,1741936793768,-2320.22,0.00021917,3]
[356128961,1741936793791,-500.0,0.00021917,3]
[356128962,1741936793812,-500.0,0.00021917,3]
[356128963,1741936793835,-500.0,0.00021917,3]
[356128964,1741936793856,-500.0,0.00021917,3]
[356128965,1741936793878,-500.0,0.00021917,3]
[356128966,1741936793900,-644.81,0.00021917,3]
[356128967,1741936793922,-501.40547304,0.00021917,3]
[356128968,1741936793944,-500.0,0.00021917,3]
[356128969,1741936793967,-500.0,0.00021917,3]
[356128970,1741936793990,-651.11,0.00021917,3]
[356128971,1741936794012,-503.21480661,0.00021917,3]
[356128972,1741936794034,-500.0,0.00021917,3]
[356128973,1741936794056,-500.0,0.00021917,3]
[356128974,1741936794078,-503.68918271,0.00021917,3]
[356128975,1741936794100,-500.0,0.00021917,3]
[356128976,1741936794122,-500.0,0.00021917,3]
[356128977,1741936794145,-640.04,0.00021917,3]
[356128978,1741936794169,-1360.83,0.00021917,3]
[356128979,1741936794192,-500.0,0.00021917,3]
[356128980,1741936794214,-500.0,0.00021917,3]
[356128981,1741936794236,-500.0,0.00021917,3]
[356128982,1741936794259,-500.0,0.00021917,3]
[356128983,1741936794281,-500.0,0.00021917,3]
[356128984,1741936794304,-500.0,0.00021917,3]
[356128985,1741936794326,-500.0,0.00021917,3]
[356128986,1741936794349,-630.93,0.00021917,3]
[356128987,1741936794372,-655.53,0.00021917,3]
[356128988,1741936794395,-500.0,0.00021917,3]
[356128989,1741936794419,-591.65487685,0.00021917,3]
[356128990,1741936794442,-540.53114255,0.00021917,3]
[356128991,1741936794465,-662.11,0.00021917,3]
[356128992,1741936794488,-598.3,0.00021917,3]
[356128993,1741936794510,-500.0,0.00021917,3]
[356128994,1741936794534,-500.0,0.00021917,3]
[356128995,1741936794558,-500.0,0.00021917,3]
[356128996,1741936794608,-1138.98,0.00021917,3]
[356128997,1741936794660,-503.24963103,0.00021917,3]
[356128998,1741936794710,-500.0,0.00021917,3]
[356128999,1741936794760,-640.1,0.00021917,3]
[356129000,1741936794793,-500.0,0.00021917,3]
[356129001,1741936794816,-626.98,0.00021917,3]
[356129002,1741936794838,-500.0,0.00021917,3]
[356129003,1741936794860,-505.48614895,0.00021917,3]
[356129004,1741936794884,-556.09,0.00021917,3]
[356129005,1741936794907,-502.58584802,0.00021917,3]
[356129006,1741936794930,-500.0,0.00021917,3]
[356129007,1741936794954,-500.0,0.00021917,3]
[356129008,1741936794978,-1232.74,0.00021917,3]
[356129009,1741936795002,-870.34,0.00021917,3]
[356129010,1741936795026,-500.0,0.00021917,3]
[356129011,1741936795049,-500.0,0.00021917,3]
[356129012,1741936795071,-500.0,0.00021917,3]
[356129013,1741936795095,-500.0,0.00021917,3]
[356129014,1741936795119,-500.0,0.00021917,3]
[356129015,1741936795141,-500.0,0.00021917,3]
[356129016,1741936795164,-500.0,0.00021917,3]
[356129017,1741936795186,-500.0,0.00021917,3]
[356129018,1741936795208,-500.0,0.00021917,3]
[356129019,1741936795230,-500.0,0.00021917,3]
[356129020,1741936795253,-500.0,0.00021917,3]
[356129021,1741936795277,-500.0,0.00021917,3]
[356129022,1741936795301,-500.0,0.00021917,3]
[356129023,1741936795324,-500.88507801,0.00021917,3]
[356129024,1741936795347,-311.01056075,0.00021917,3]
[356129025,1741936795370,-1335.59,0.00021917,3]
[356129026,1741936795394,-500.0,0.00021917,3]
[356129027,1741936795418,-500.0,0.00021917,3]
[356129028,1741936795442,-512.75,0.00021917,3]
[356129029,1741936795465,-502.85213421,0.00021917,3]
[356129030,1741936795488,-600.89,0.00021917,3]
[356129031,1741936795511,-500.0,0.00021917,3]
[356129032,1741936795533,-502.18846577,0.00021917,3]
[356129033,1741936795557,-829.85,0.00021917,3]
[356129034,1741936795581,-500.0,0.00021917,3]
[356129035,1741936795604,-500.0,0.00021917,3]
[356129036,1741936795629,-500.0,0.00021917,3]
[356129037,1741936795655,-303.91211183,0.00021917,3]
[356129038,1741936795679,-500.0,0.00021917,3]
[356129039,1741936795702,-782.12,0.00021917,3]
[356129040,1741936795725,-500.0,0.00021917,3]
[356129041,1741936795748,-500.0,0.00021917,3]
[356129042,1741936795771,-500.0,0.00021917,3]
[356129043,1741936795794,-942.36,0.00021917,3]
[356129044,1741936795819,-500.0,0.00021917,3]
[356129045,1741936795842,-501.24436004,0.00021917,3]
[356129046,1741936795864,-501.23362963,0.00021917,3]
[356129047,1741936795888,-502.56238879,0.00021917,3]
[356129048,1741936795912,-661.22,0.00021917,3]
[356129049,1741936795937,-500.0,0.00021917,3]
[356129050,1741936795961,-505.17082139,0.00021917,3]
[356129051,1741936795985,-1002.37,0.00021917,3]
[356129052,1741936796008,-193.18682389,0.00021917,7]
[356129053,1741936796032,-500.0,0.00021917,3]
[356129054,1741936796056,-1000.0,0.00021917,3]
[356129055,1741936796080,-500.0,0.00021917,3]
[356129056,1741936796106,-501.35088406,0.00021917,3]
[356129057,1741936796131,-503.42880032,0.00021917,3]
[356129058,1741936796154,-500.0,0.00021917,3]
[356129059,1741936796178,-500.0,0.00021917,3]
[356129060,1741936796203,-500.0,0.00021917,3]
[356129061,1741936796227,-527.1,0.00021917,3]
[356129062,1741936796251,-636.71,0.00021917,3]
[356129063,1741936796456,-507.91,0.00021917,3]
[356129064,1741936796480,-500.0,0.00021917,3]
[356129065,1741936796504,-500.0,0.00021917,3]
[356129066,1741936796527,-500.0,0.00021917,3]
[356129067,1741936796550,-1121.93,0.00021917,3]
[356129068,1741936796573,-738.18,0.00021917,3]
[356129069,1741936796597,-500.0,0.00021917,3]
[356129070,1741936796622,-502.92129654,0.00021917,3]
[356129071,1741936796650,-500.0,0.00021917,3]
[356129072,1741936796675,-1082.27,0.00021917,3]
[356129073,1741936796698,-501.07,0.00021917,3]
[356129074,1741936796724,-500.0,0.00021917,3]
[356129075,1741936796748,-500.0,0.00021917,3]
[356129076,1741936796772,-500.0,0.00021917,3]
[356129077,1741936796795,-500.0,0.00021917,3]
[356129078,1741936796818,-500.0,0.00021917,3]
[356129079,1741936796841,-500.0,0.00021917,3]
[356129080,1741936796864,-1930.48,0.00021917,3]
[356129081,1741936796887,-792.57,0.00021917,3]
[356129082,1741936796910,-500.0,0.00021917,3]
[356129083,1741936796934,-646.68,0.00021917,3]
[356129084,1741936796957,-500.0,0.00021917,3]
[356129085,1741936796980,-500.40439613,0.00021917,3]
[356129086,1741936797004,-501.06,0.00021917,3]
[356129087,1741936797027,-500.0,0.00021917,3]
[356129088,1741936797049,-498.87224948,0.00021917,3]
[356129089,1741936797071,-1237.94,0.00021917,3]
[356129090,1741936797093,-500.0,0.00021917,3]
[356129091,1741936797115,-500.0,0.00021917,3]
[356129092,1741936797138,-500.0,0.00021917,3]
[356129093,1741936797161,-809.56,0.00021917,3]
[356129094,1741936797185,-500.0,0.00021917,3]
[356129095,1741936797209,-500.0,0.00021917,3]
[356129096,1741936797232,-500.77084827,0.00021917,3]
[356129097,1741936797257,-648.13,0.00021917,3]
[356129098,1741936797282,-1440.13,0.00021917,3]
[356129099,1741936797304,-500.0,0.00021917,3]
[356129100,1741936797327,-500.0,0.00021917,3]
[356129101,1741936797352,-500.0,0.00021917,3]
[356129102,1741936797376,-512.92,0.00021917,3]
[356129103,1741936797400,-574.09,0.00021917,3]
[356129104,1741936797424,-500.0,0.00021917,3]
[356129105,1741936797451,-500.0,0.00021917,3]
[356129106,1741936797476,-534.47,0.00021917,3]
[356129107,1741936797500,-500.0,0.00021917,3]
[356129108,1741936797525,-500.0,0.00021917,3]
[356129109,1741936797548,-503.20424039,0.00021917,3]
[356129110,1741936797571,-500.0,0.00021917,3]
[356129111,1741936797596,-500.0,0.00021917,3]
[356129112,1741936797620,-500.0,0.00021917,3]
[356129113,1741936797667,-500.0,0.00021917,3]
[356129114,1741936797707,-500.0,0.00021917,3]
[356129115,1741936797748,-500.0,0.00021917,3]
[356129116,1741936797787,-502.80581418,0.00021917,3]
[356129117,1741936797829,-500.0,0.00021917,3]
[356129118,1741936797867,-500.0,0.00021917,3]
[356129119,1741936797907,-500.0,0.00021917,3]
[356129120,1741936797947,-500.0,0.00021917,3]
[356129121,1741936797988,-500.0,0.00021917,3]
[356129122,1741936798028,-500.0,0.00021917,3]
[356129123,1741936798067,-500.0,0.00021917,3]
[356129124,1741936798108,-500.0,0.00021917,3]
[356129125,1741936798146,-500.0,0.00021917,3]
[356129126,1741936798182,-500.0,0.00021917,3]
[356129127,1741936798220,-500.0,0.00021917,3]
[356129128,1741936798258,-296.02870249,0.00021917,3]
[356129129,1741936798297,-1070.2,0.00021917,3]
[356129130,1741936798334,-500.0,0.00021917,3]
[356129131,1741936798372,-2035.33,0.00021917,3]
[356129132,1741936798411,-1106.92,0.00021917,3]
[356129133,1741936798451,-1063.85,0.00021917,3]
[356129134,1741936798490,-506.9244574,0.00021917,3]
[356129135,1741936798528,-503.29211699,0.00021917,3]
[356129136,1741936798566,-500.0,0.00021917,3]
[356129137,1741936798604,-500.0,0.00021917,3]
[356129138,1741936798643,-957.68,0.00021917,3]
[356129139,1741936798691,-500.0,0.00021917,3]
[356129140,1741936798736,-500.0,0.00021917,3]
[356129141,1741936798777,-500.0,0.00021917,3]
[356129142,1741936798820,-500.0,0.00021917,3]
[356129143,1741936798863,-500.0,0.00021917,3]
[356129144,1741936798906,-500.0,0.00021917,3]
[356129145,1741936798949,-500.0,0.00021917,3]
[356129146,1741936798992,-516.50890166,0.00021917,3]
[356129147,1741936799034,-500.0,0.00021917,3]
[356129148,1741936799078,-500.0,0.00021917,3]
[356129149,1741936799119,-501.37295164,0.00021917,3]
[356129150,1741936799163,-749.54,0.00021917,3]
[356129151,1741936799204,-500.0,0.00021917,3]
[356129152,1741936799243,-500.0,0.00021917,3]
[356129153,1741936799282,-500.0,0.00021917,3]
[356129154,1741936799320,-500.0,0.00021917,3]
[356129155,1741936799358,-900.62,0.00021917,3]
[356129156,1741936799395,-500.0,0.00021917,3]
[356129157,1741936799435,-1183.4,0.00021917,3]
[356129158,1741936799472,-501.04552808,0.00021917,3]
[356129159,1741936799511,-500.0,0.00021917,3]
[356129160,1741936799547,-500.0,0.00021917,3]
[356129161,1741936799585,-2463.06,0.00021917,3]
[356129162,1741936799621,-500.0,0.00021917,3]
[356129163,1741936799662,-500.43430083,0.00021917,3]
[356129164,1741936799701,-500.0,0.00021917,3]
[356129165,1741936799740,-500.0,0.00021917,3]
[356129166,1741936799782,-500.0,0.00021917,3]
[356129167,1741936799824,-907.67,0.00021917,3]
[356129168,1741936799863,-1751.54,0.00021917,3]
[356129169,1741936799906,-659.53,0.00021917,3]
[356129170,1741936799950,-501.94401754,0.00021917,3]
[356129171,1741936799992,-500.0,0.00021917,3]
[356129172,1741936800034,-500.0,0.00021917,3]
[356129173,1741936800077,-500.0,0.00021917,3]
[356129174,1741936800121,-500.0,0.00021917,3]
[356129175,1741936800163,-500.0,0.00021917,3]
[356129176,1741936800206,-500.0,0.00021917,3]
[356129177,1741936800249,-501.66827146,0.00021917,3]
[356129178,1741936800295,-638.1,0.00021917,3]
[356129179,1741936800343,-500.0,0.00021917,3]
[356129180,1741936800393,-576.08,0.00021917,3]
[356129181,1741936800446,-500.0,0.00021917,3]
[356129182,1741936800490,-500.0,0.00021917,3]
[356129183,1741936800535,-500.0,0.00021917,3]
[356129184,1741936800577,-605.51,0.00021917,3]
[356129185,1741936800617,-500.0,0.00021917,3]
[356129186,1741936800660,-500.0,0.00021917,3]
[356129187,1741936800700,-500.0,0.00021917,3]
[356129188,1741936800737,-500.0,0.00021917,3]
[356129189,1741936800777,-500.0,0.00021917,3]
[356129190,1741936800813,-538.17,0.00021917,3]
[356129191,1741936800852,-500.0,0.00021917,3]
[356129192,1741936800889,-500.0,0.00021917,3]
[356129193,1741936800927,-500.0,0.00021917,3]
[356129194,1741936800966,-1000.0,0.00021918,2]
[356129195,1741936801004,-1000.0,0.00021918,2]
[356129196,1741936801043,-1000.0,0.00021918,2]
[356129197,1741936801082,-1009.0,0.00021918,2]
[356129198,1741936801119,-3759.4723052,0.00021942,2]
[356129199,1741936801161,-500.0,0.00021945,3]
[356129200,1741936801202,-500.0,0.00021945,3]
[356129201,1741936801243,-301.41095239,0.00021945,3]
[356129202,1741936801287,-500.0,0.00021945,3]
[356129203,1741936801329,-500.0,0.00021945,3]
[356129204,1741936801372,-500.0,0.00021945,3]
[356129205,1741936801413,-500.0,0.00021945,3]
[356129206,1741936801455,-500.0,0.00021945,3]
[356129207,1741936801498,-500.0,0.00021945,3]
[356129208,1741936801539,-500.0,0.00021945,3]
[356129209,1741936801583,-500.0,0.00021945,3]
[356129210,1741936801624,-1173.12,0.00021945,3]
[356129211,1741936801674,-500.0,0.00021945,3]
[356129212,1741936801719,-500.0,0.00021945,3]
[356129213,1741936801764,-500.0,0.00021945,3]
[356129214,1741936801808,-500.0,0.00021945,3]
[356129215,1741936802097,-359.76,0.00021945,3]
[356129216,1741936802141,-500.0,0.00021945,3]
[356129217,1741936802184,-824.92,0.00021945,3]
[356129218,1741936802232,-500.0,0.00021945,3]
[356129219,1741936802276,-500.0,0.00021945,3]
[356129220,1741936802318,-1170.76,0.00021945,3]
[356129221,1741936802359,-500.0,0.00021945,3]
[356129222,1741936802402,-563.47,0.00021945,3]
[356129223,1741936802444,-724.09,0.00021945,3]
[356129224,1741936802486,-500.0,0.00021945,3]
[356129225,1741936802527,-500.0,0.00021945,3]
[356129226,1741936802569,-500.0,0.00021945,3]
[356129227,1741936802610,-500.0,0.00021945,3]
[356129228,1741936802652,-500.0,0.00021945,3]
[356129229,1741936802693,-500.0,0.00021945,3]
[356129230,1741936802733,-680.44,0.00021945,3]
[356129231,1741936802775,-500.0,0.00021945,3]
[356129232,1741936802815,-628.81584513,0.00021945,3]
[356129233,1741936802856,-500.0,0.00021945,3]
[356129234,1741936802898,-500.0,0.00021945,3]
[356129235,1741936802943,-1067.37,0.00021945,3]
[356129236,1741936802986,-682.16,0.00021945,3]
[356129237,1741936803033,-500.0,0.00021945,3]
[356129238,1741936803079,-500.0,0.00021945,3]
[356129239,1741936803131,-1272.63,0.00021945,3]
[356129240,1741936803189,-500.0,0.00021945,3]
[356129241,1741936803235,-510.93,0.00021945,3]
[356129242,1741936803282,-500.0,0.00021945,3]
[356129243,1741936803329,-500.0,0.00021945,3]
[356129244,1741936803377,-615.94,0.00021945,3]
[356129245,1741936803424,-500.0,0.00021945,3]
[356129246,1741936803470,-500.0,0.00021945,3]
[356129247,1741936803514,-500.0,0.00021945,3]
[356129248,1741936803557,-500.0,0.00021945,3]
[356129249,1741936803602,-500.0,0.00021945,3]
[356129250,1741936803647,-540.37,0.00021945,3]
[356129251,1741936803693,-1269.96,0.00021945,3]
[356129252,1741936803737,-535.32744296,0.00021945,3]
[356129253,1741936803783,-500.0,0.00021945,3]
[356129254,1741936803827,-500.0,0.00021945,3]
[356129255,1741936803871,-500.0,0.00021945,3]
[356129256,1741936803917,-509.93,0.00021945,3]
[356129257,1741936803963,-500.0,0.00021945,3]
[356129258,1741936804009,-596.66,0.00021945,3]
[356129259,1741936804055,-503.77767221,0.00021945,3]
[356129260,1741936804102,-500.0,0.00021945,3]
[356129261,1741936804148,-500.0,0.00021945,3]
[356129262,1741936804194,-576.44663725,0.00021945,3]
[356129263,1741936804240,-504.41101843,0.00021945,3]
[356129264,1741936804286,-502.82567003,0.00021945,3]
[356129265,1741936804333,-741.98,0.00021945,3]
[356129266,1741936804378,-531.85882566,0.00021945,3]
[356129267,1741936804423,-504.0127859,0.00021945,3]
[356129268,1741936804471,-503.25190321,0.00021945,3]
[356129269,1741936804520,-500.0,0.00021945,3]
[356129270,1741936804568,-504.49815743,0.00021945,3]
[356129271,1741936804613,-500.0,0.00021945,3]
[356129272,1741936804657,-502.78356256,0.00021945,3]
[356129273,1741936804701,-500.0,0.00021945,3]
[356129274,1741936804750,-501.73137561,0.00021945,3]
[356129275,1741936804795,-534.74,0.00021945,3]
[356129276,1741936804839,-198.47600892,0.00021945,3]
[356129277,1741936804884,-502.7319157,0.00021945,3]
[356129278,1741936804929,-500.0,0.00021945,3]
[356129279,1741936804975,-1220.36,0.00021945,3]
[356129280,1741936805018,-502.51628046,0.00021945,3]
[356129281,1741936805063,-500.0,0.00021945,3]
[356129282,1741936805107,-504.97342852,0.00021945,3]
[356129283,1741936805151,-500.0,0.00021945,3]
[356129284,1741936805196,-500.0,0.00021945,3]
[356129285,1741936805242,-504.03146496,0.00021945,3]
[356129286,1741936805286,-566.55,0.00021945,3]
[356129287,1741936805330,-1507.94994845,0.00021945,3]
[356129288,1741936805373,-500.0,0.00021945,3]
[356129289,1741936805415,-502.25950781,0.00021945,3]
[356129290,1741936805458,-500.0,0.00021945,3]
[356129291,1741936805500,-500.0,0.00021945,3]
[356129292,1741936805541,-502.10002346,0.00021945,3]
[356129293,1741936805584,-500.0,0.00021945,3]
[356129294,1741936805626,-500.0,0.00021945,3]
[356129295,1741936805675,-614.84,0.00021945,3]
[356129296,1741936805718,-500.0,0.00021945,3]
[356129297,1741936805762,-503.16566073,0.00021945,3]
[356129298,1741936805803,-500.0,0.00021945,3]
[356129299,1741936805846,-558.63,0.00021945,3]
[356129300,1741936805889,-503.90266552,0.00021945,3]
[356129301,1741936805931,-541.16072097,0.00021945,3]
[356129302,1741936805974,-555.757873,0.00021945,3]
[356129303,1741936806017,-500.0,0.00021945,3]
[356129304,1741936806058,-502.19545923,0.00021945,3]
[356129305,1741936806100,-500.0,0.00021945,3]
[356129306,1741936806142,-502.0329936,0.00021945,3]
[356129307,1741936806182,-583.61,0.00021945,3]
[356129308,1741936806224,-502.64897872,0.00021945,3]
[356129309,1741936806266,-500.0,0.00021945,3]
[356129310,1741936806308,-504.03676929,0.00021945,3]
[356129311,1741936806350,-500.0,0.00021945,3]
[356129312,1741936806396,-504.88122763,0.00021945,3]
[356129313,1741936806437,-502.4311903,0.00021945,3]
[356129314,1741936806479,-500.0,0.00021945,3]
[356129315,1741936806519,-867.64,0.00021945,3]
[356129316,1741936806561,-500.0,0.00021945,3]
[356129317,1741936806602,-502.52727835,0.00021945,3]
[356129318,1741936806644,-504.67785723,0.00021945,3]
[356129319,1741936806684,-502.58810392,0.00021945,3]
[356129320,1741936806725,-502.90620965,0.00021945,3]
[356129321,1741936806765,-500.0,0.00021945,3]
[356129322,1741936806804,-502.43763136,0.00021945,3]
[356129323,1741936806844,-500.0,0.00021945,3]
[356129324,1741936806883,-501.71575409,0.00021945,3]
[356129325,1741936806924,-1548.19,0.00021945,3]
[356129326,1741936806965,-501.9168832,0.00021945,3]
[356129327,1741936807008,-500.0,0.00021945,3]
[356129328,1741936807049,-503.58122504,0.00021945,3]
[356129329,1741936807090,-1354.02,0.00021945,3]
[356129330,1741936807131,-500.0,0.00021945,3]